bitfinex/quotes_ETHUSD_20241203
["timestamp","ask_amount","ask_price","bid_price","bid_amount"]
[1733246743221,1.23379018,3545.9,3545.8,0.005]
[1733246744167,0.86337099,3545.9,3545.8,0.005]
[1733246744769,0.8062,3545.9,3545.8,0.005]
[1733246744949,0.86277156,3545.9,3545.8,0.005]
[1733246746869,4.16369686,3545.9,3545.8,0.005]
[1733246747215,4.18443109,3545.9,3545.8,0.005]
[1733246747463,5.1848752,3545.9,3545.8,0.005]
[1733246747664,5.16414097,3545.9,3545.8,0.005]
[1733246748334,1.86321567,3545.9,3545.8,0.005]
[1733246748535,0.86277156,3545.9,3545.8,0.005]
[1733246749448,0.05657156,3545.9,3545.8,2.82523]
[1733246749837,0.7513,3546.4,3545.8,2.82523]
[1733246750157,0.75130724,3546.7,3546.0,2.82005]
[1733246750323,0.05680036,3546.3,3545.8,2.82522]
[1733246750662,0.75130724,3546.7,3545.8,2.82522]
[1733246750663,0.77204147,3546.7,3545.9,0.2860395]
[1733246750859,0.75130724,3546.7,3545.8,0.005]
[1733246751072,0.0776679,3546.6,3545.9,0.00295826]
[1733246751436,0.05693367,3546.6,3545.9,2.82307826]
[1733246751621,0.05693367,3546.6,3545.9,0.00295826]
[1733246751821,0.05693367,3546.6,3545.9,0.81415834]
[1733246752066,0.05693367,3546.6,3546.5,2.81968]
[1733246752278,0.05693367,3546.6,3546.1,2.81999]
[1733246752425,0.8317,3546.6,3545.9,0.00295826]
[1733246752625,3.3009253,3546.4,3545.9,0.00295826]
[1733246752825,0.02073423,3546.3,3545.9,0.00295826]
[1733246753025,0.07778762,3546.3,3545.9,0.00295826]
[1733246753254,4.0934253,3546.0,3545.9,0.00295826]
[1733246753493,7.11415953,3546.0,3545.9,0.00295826]
[1733246753668,7.86750752,3546.0,3545.9,0.00295826]
[1733246753870,10.68757752,3546.0,3545.9,0.00295826]
[1733246755926,10.94729575,3546.0,3545.9,0.00295826]
[1733246756194,11.90015,3545.9,3545.8,8.26e-06]
[1733246756352,6.60805,3545.4,3545.3,0.1562772]
[1733246756552,10.84590266,3545.4,3545.3,0.1562772]
[1733246756756,10.90233664,3545.4,3545.3,0.1562772]
[1733246757198,0.7875,3545.2,3543.8,0.70415321]
[1733246757349,3.3009253,3544.4,3543.8,0.70415321]
[1733246757551,0.0558129,3544.3,3543.8,0.70415321]
[1733246758294,2.82128,3544.5,3543.9,0.35310732]
[1733246758591,2.82144,3544.3,3543.8,0.70415321]
[1733246758752,3.3009253,3544.0,3543.8,0.70415321]
[1733246758953,6.59718423,3543.9,3543.8,0.70415321]
[1733246759186,6.6301007,3543.9,3543.8,0.70415321]
[1733246759463,7.60694393,3543.9,3543.8,0.70415321]
[1733246760086,7.34722199,3543.9,3543.8,0.70415321]
[1733246760302,7.60710089,3543.9,3543.8,0.70415321]
[1733246762314,4.52547199,3543.9,3543.8,0.70415321]
[1733246762707,0.8083507,3543.9,3543.8,0.70415321]
[1733246763019,0.0536507,3543.9,3543.8,0.70415321]
[1733246763184,4.08805953,3544.4,3543.8,0.70415321]
[1733246763378,0.05338264,3544.3,3543.8,0.70415321]
[1733246764203,3.05338264,3544.3,3543.8,0.70415321]
[1733246764627,0.05338264,3544.3,3543.8,3.52595321]
[1733246764919,0.05338264,3544.3,3544.1,2.82158]
[1733246765127,0.05338264,3544.3,3543.9,0.8279]
[1733246765306,0.02073423,3544.6,3543.8,1.05726753]
[1733246765507,0.05175108,3544.2,3544.1,2.82159]
[1733246765712,0.8167,3544.9,3544.1,2.82159]
[1733246765877,0.25933151,3545.1,3544.3,2.8214]
[1733246766078,0.05194033,3544.8,3544.3,2.8214]
[1733246766386,0.05190377,3544.7,3544.2,2.8215]
[1733246766590,3.02073423,3545.1,3543.8,0.70415321]
[1733246766591,3.0,3545.1,3544.3,2.82141]
[1733246766828,0.05197766,3545.0,3544.3,2.82141]
[1733246766995,0.05197766,3545.0,3543.8,0.70415321]
[1733246767179,0.31139233,3545.0,3544.4,2.82134]
[1733246767583,0.05197766,3545.0,3543.9,2.82175]
[1733246767792,0.05197766,3545.0,3544.6,2.82118]
[1733246768179,0.05133864,3544.9,3544.7,2.8211]
[1733246768383,0.25944046,3545.5,3544.8,2.82103]
[1733246768815,0.05186939,3545.4,3544.9,2.82095]
[1733246769019,0.05186939,3545.4,3544.6,0.363218]
[1733246769020,0.05186939,3545.4,3544.7,2.8211]
[1733246769533,0.05186939,3545.4,3544.6,0.363218]
[1733246769712,0.05186939,3545.4,3545.2,2.8207]
[1733246769919,0.05186939,3545.4,3545.3,2.82063]
[1733246770226,0.25947053,3545.9,3545.4,2.82054]
[1733246770381,3.3009253,3546.0,3545.0,2.82087]
[1733246770582,2.81953724,3546.7,3545.0,0.8234]
[1733246770583,0.8261,3546.6,3545.0,0.8234]
[1733246770823,1.23880325,3546.6,3545.9,2.82011]
[1733246770981,1.23880325,3546.6,3545.7,2.82024]
[1733246771182,1.23880325,3546.6,3545.4,2.82049]
[1733246771183,1.23880325,3546.6,3545.8,2.82019]
[1733246771880,1.23880325,3546.6,3545.4,2.82049]
[1733246772086,0.04923598,3546.5,3545.9,2.82012]
[1733246772914,0.83408349,3546.5,3545.9,2.82012]
[1733246773089,0.83408349,3546.5,3546.0,2.82005]
[1733246773291,0.04923598,3546.5,3546.1,2.81997]
[1733246773633,0.04923598,3546.5,3546.1,2.81995]
[1733246773924,3.00000724,3546.7,3546.1,2.81995]
[1733246774093,0.04963192,3546.4,3546.1,2.81995]
[1733246774294,3.00000724,3546.7,3546.2,2.81989]
[1733246774494,0.04960926,3546.3,3546.2,2.81989]
[1733246774818,3.00000724,3546.7,3546.2,2.81989]
[1733246775221,3.00000724,3546.7,3546.0,2.82006]
[1733246775425,0.04965995,3546.6,3546.0,2.82007]
[1733246775785,0.04965995,3546.6,3546.1,2.81999]
[1733246776025,0.04965995,3546.6,3546.2,2.8199]
[1733246776226,0.04965995,3546.6,3545.8,0.8234]
[1733246776227,0.04965995,3546.6,3546.3,2.81982]
[1733246776436,0.04965995,3546.6,3546.4,2.81975]
[1733246776636,0.04965995,3546.6,3545.8,3.64362]
[1733246776801,0.04965995,3546.6,3545.8,0.8234]
[1733246777001,0.3847192,3546.6,3546.0,2.82002]
[1733246777205,0.02073423,3546.5,3545.8,0.8234]
[1733246777539,0.05017223,3546.4,3545.9,2.82014]
[1733246778025,7.24e-06,3546.7,3545.8,0.8234]
[1733246778229,0.05012742,3546.6,3545.8,0.8234]
[1733246778432,0.05012742,3546.6,3546.3,2.81983]
[1733246778636,0.05012742,3546.6,3546.4,2.81972]
[1733246778820,0.02074147,3546.7,3546.0,2.82002]
[1733246778991,0.05022595,3546.6,3546.0,2.82002]
[1733246779391,0.05022595,3546.6,3546.1,2.81994]
[1733246779703,0.07096018,3546.6,3545.8,0.8234]
[1733246779908,0.07096018,3546.6,3546.0,2.82]
[1733246780637,0.05022595,3546.6,3546.1,2.81997]
[1733246781191,0.84366018,3546.6,3545.8,0.8234]
[1733246781391,0.84366018,3546.6,3545.6,2.82032]
[1733246781638,0.99641427,3546.5,3545.9,2.82014]
[1733246781853,0.05031021,3546.4,3546.1,2.81996]
[1733246782001,0.05031021,3546.4,3545.4,0.02820133]
[1733246782196,7.24e-06,3546.7,3546.1,0.7706]
[1733246782442,7.24e-06,3546.7,3546.6,2.8196]
[1733246784659,7.24e-06,3546.7,3546.6,7.2021]
[1733246784940,7.24e-06,3546.7,3546.6,7.91491522]
[1733246785902,7.24e-06,3546.7,3546.2,0.8146]
[1733246786108,0.799,3546.6,3545.8,0.8146]
[1733246786332,0.84337703,3546.6,3545.7,2.82024]
[1733246786555,0.02073423,3546.5,3545.6,2.82034]
[1733246786914,0.02073423,3546.5,3545.2,0.8146]
[1733246786915,0.04432118,3546.4,3546.1,2.81993]
[1733246787154,0.04432118,3546.4,3546.3,2.81984]
[1733246787310,7.24e-06,3546.7,3546.0,3.62201]
[1733246787645,7.24e-06,3546.7,3546.6,2.8196]
[1733246788460,7.24e-06,3546.7,3546.0,0.802]
[1733246788621,7.24e-06,3546.7,3546.2,2.81991]
[1733246790251,0.04240928,3546.6,3546.2,2.81991]
[1733246790434,0.04240928,3546.6,3546.3,2.81981]
[1733246790639,0.04240928,3546.6,3545.7,3.62271]
[1733246791009,0.04240928,3546.6,3546.2,2.81988]
[1733246791457,0.04240928,3546.6,3545.8,2.82023]
[1733246791653,0.04240928,3546.6,3546.5,2.81968]
[1733246792634,7.24e-06,3546.7,3546.4,0.8035]
[1733246792834,7.24e-06,3546.7,3546.6,2.8196]
[1733246793648,0.04240644,3546.7,3546.6,2.8196]
[1733246793865,7.24e-06,3546.7,3546.6,2.8196]
[1733246794354,7.24e-06,3546.7,3546.6,6.49490327]
[1733246794506,7.24e-06,3546.7,3546.6,6.46670945]
[1733246794711,7.24e-06,3546.7,3546.6,7.01670945]
[1733246797643,7.24e-06,3546.7,3546.6,3.46670945]
[1733246799219,7.24e-06,3546.7,3546.6,2.8196]
[1733246800135,7.24e-06,3546.7,3546.4,2.81974]
[1733246800662,0.04247632,3546.6,3546.3,2.81984]
[1733246800830,0.7556,3546.5,3545.7,0.823]
[1733246801033,3.29901457,3546.4,3545.5,2.82042]
[1733246801265,0.40970909,3546.3,3545.3,0.823]
[1733246801563,0.40970909,3546.3,3545.4,2.82055]
[1733246801751,0.0423611,3546.2,3545.4,2.82055]
[1733246801990,0.0423611,3546.2,3545.6,2.82035]
[1733246802123,0.02073423,3546.4,3545.6,2.82035]
[1733246802324,0.04233844,3546.1,3545.6,2.82035]
[1733246802533,0.02073423,3546.4,3545.6,2.82035]
[1733246802747,0.04246267,3546.0,3545.7,2.82031]
[1733246803072,0.04200247,3545.9,3545.8,2.82017]
[1733246803578,0.7556,3546.5,3546.0,2.82007]
[1733246803929,0.04201786,3546.4,3546.0,2.82007]
[1733246804237,0.04201786,3546.4,3546.1,2.81999]
[1733246804470,0.04201786,3546.4,3545.4,0.55]
[1733246804657,0.04201786,3546.4,3546.0,2.82005]
[1733246804872,0.04201786,3546.4,3546.3,2.81984]
[1733246805365,0.04201786,3546.4,3546.3,2.84803421]
[1733246805522,7.24e-06,3546.7,3546.6,2.8196]
[1733246808375,7.24e-06,3546.7,3546.2,0.7516]
[1733246808574,7.24e-06,3546.7,3546.6,2.8196]
[1733246809076,0.04244471,3546.7,3546.6,2.8196]
[1733246809284,7.24e-06,3546.7,3546.6,2.8196]
[1733246810791,7.24e-06,3546.7,3546.6,5.8196]
[1733246811084,7.24e-06,3546.7,3546.6,7.1976]
[1733246811288,7.24e-06,3546.7,3546.6,8.19934]
[1733246813762,7.24e-06,3547.0,3546.9,2.81936]
[1733246813965,7.24e-06,3547.0,3546.9,7.17004713]
[1733246814199,7.24e-06,3547.0,3546.9,7.14186]
[1733246814911,0.29435517,3548.1,3548.0,2.81848]
[1733246816186,0.29435517,3548.1,3547.7,2.81872]
[1733246816573,0.29435517,3548.1,3547.8,2.81864]
[1733246817566,0.29435517,3548.1,3547.8,2.81861]
[1733246819085,0.29435517,3548.1,3547.6,2.8188]
[1733246819414,0.0423684,3548.0,3547.6,2.8188]
[1733246819578,0.0423684,3548.0,3547.3,3.8236]
[1733246819906,0.0423684,3548.0,3547.5,2.81886]
[1733246820068,0.06310263,3548.0,3546.7,2.81948]
[1733246820271,2.81874,3547.7,3546.7,2.81952]
[1733246820482,0.06300006,3547.6,3546.5,2.81968]
[1733246820684,0.40859084,3547.6,3546.5,0.6821086]
[1733246820907,0.04226583,3547.6,3546.5,0.02819298]
[1733246821225,0.29435517,3548.1,3547.7,2.81869]
[1733246821226,1.07595517,3548.1,3547.7,2.81869]
[1733246821509,1.07595517,3548.1,3546.8,3.29901457]
[1733246821510,1.07595517,3548.1,3547.6,2.81874]
[1733246821694,0.0423433,3548.0,3547.4,2.81893]
[1733246821896,0.02073423,3548.0,3546.6,3.64402]
[1733246822100,0.02073423,3548.0,3546.7,0.364402]
[1733246822287,0.8275,3547.9,3546.6,0.8245]
[1733246822469,0.86982084,3547.9,3547.5,2.81887]
[1733246822668,0.86982084,3547.9,3546.8,2.81944]
[1733246822872,0.86982084,3547.9,3546.6,0.8245]
[1733246823200,0.86982084,3547.9,3546.6,3.64406]
[1733246823370,1.26808044,3547.9,3547.0,2.81921]
[1733246823574,1.26808044,3547.9,3547.1,2.81913]
[1733246823770,1.26808044,3547.9,3546.7,6.183876]
[1733246823771,0.86982084,3547.9,3546.7,3.364406]
[1733246823975,0.86982084,3547.9,3546.8,2.81944]
[1733246824210,0.86982084,3547.9,3546.9,3.0]
[1733246824411,0.86982084,3547.9,3547.1,2.81917]
[1733246824620,0.86982084,3547.9,3547.3,2.819]
[1733246824816,0.86982084,3547.9,3546.9,3.0]
[1733246825106,1.01222099,3547.9,3547.1,2.81919]
[1733246825313,1.01222099,3547.9,3546.7,0.364406]
[1733246825513,0.86982084,3547.9,3547.0,2.81921]
[1733246826004,0.89055507,3547.9,3546.7,2.81944]
[1733246826220,0.755,3547.5,3546.2,0.8221]
[1733246826382,0.755,3547.5,3546.9,2.81934]
[1733246826598,0.04073242,3547.4,3546.9,2.81934]
[1733246826770,0.04073242,3547.4,3546.2,0.8221]
[1733246826771,0.04073242,3547.4,3547.1,2.8192]
[1733246826971,0.04073242,3547.4,3546.2,0.8221]
[1733246827171,0.04073242,3547.4,3546.4,0.02819199]
[1733246827428,0.755,3547.5,3547.1,2.81914]
[1733246827573,0.755,3547.5,3547.1,2.81919]
[1733246827924,0.04042059,3547.4,3546.7,2.81945]
[1733246828075,0.04042059,3547.4,3546.3,3.36984]
[1733246828076,0.04042059,3547.4,3547.2,2.81904]
[1733246828275,0.7673,3548.0,3547.3,2.81904]
[1733246828472,0.04057482,3547.9,3547.3,2.81904]
[1733246828786,0.02073423,3547.8,3547.1,2.81912]
[1733246828989,0.04057482,3547.9,3547.3,2.81902]
[1733246829191,0.04065106,3547.7,3547.3,2.81902]
[1733246829402,0.04070918,3547.8,3547.1,2.81917]
[1733246829703,0.04066391,3547.6,3546.8,0.785]
[1733246829878,0.04067767,3547.7,3547.2,2.81911]
[1733246830080,0.7673,3548.0,3547.2,2.81911]
[1733246830311,0.29437584,3547.7,3547.0,2.81921]
[1733246830478,0.02073423,3547.6,3546.8,2.81942]
[1733246830814,0.04067934,3547.5,3546.5,0.7607]
[1733246830983,0.8119,3547.4,3546.5,0.7607]
[1733246831313,0.85258947,3547.4,3546.6,0.713045]
[1733246831518,0.85258947,3547.4,3546.4,2.81971]
[1733246831812,0.85258947,3547.4,3546.8,2.81942]
[1733246832181,0.85258947,3547.4,3546.9,2.81936]
[1733246833007,0.85258947,3547.4,3546.9,2.8193]
[1733246833719,0.85258947,3547.4,3547.0,2.81924]
[1733246833898,0.85258947,3547.4,3546.2,3.63379]
[1733246834072,0.8119,3547.4,3547.1,2.81913]
[1733246834280,0.8119,3547.4,3546.9,2.81932]
[1733246834521,1.10367584,3547.7,3547.2,2.8191]
[1733246834785,0.04049215,3547.3,3547.2,2.8191]
[1733246835002,1.10367584,3547.7,3547.2,2.8191]
[1733246835422,0.04059579,3547.6,3547.2,2.8191]
[1733246835927,0.04059579,3547.6,3547.3,2.81902]
[1733246836881,0.04059579,3547.6,3546.9,0.7638]
[1733246837324,0.29437584,3547.7,3546.9,3.58312]
[1733246837502,0.29437584,3547.7,3547.1,2.81913]
[1733246837715,0.29437584,3547.7,3547.0,0.358312]
[1733246837716,0.04057315,3547.5,3547.4,2.81896]
[1733246837876,0.04052385,3547.6,3547.4,2.81896]
[1733246838078,0.29437584,3547.7,3547.4,2.81896]
[1733246838520,0.04063445,3547.6,3547.4,2.81896]
[1733246838724,0.29437584,3547.7,3547.4,2.81896]
[1733246839020,0.04067089,3547.5,3547.4,2.81896]
[1733246839181,0.29437584,3547.7,3547.4,2.81896]
[1733246839385,0.04073842,3547.5,3547.4,2.81896]
[1733246839607,0.29437584,3547.7,3547.4,2.81896]
[1733246839805,0.29437584,3547.7,3547.0,0.358312]
[1733246840012,0.04078767,3547.6,3547.3,2.81902]
[1733246840222,0.04078767,3547.6,3547.0,2.81928]
[1733246840422,0.29437584,3547.7,3547.3,2.81898]
[1733246840634,0.26014379,3547.6,3547.4,2.81893]
[1733246840828,0.04075286,3547.6,3547.5,2.81888]
[1733246840989,0.29437584,3547.7,3547.5,2.81888]
[1733246841188,0.04074248,3547.6,3547.5,2.81888]
[1733246841384,0.29437584,3547.7,3547.5,2.81888]
[1733246841585,0.04077115,3547.6,3547.5,2.81888]
[1733246841821,0.55451963,3547.7,3547.5,2.81888]
[1733246841991,0.29437584,3547.7,3547.5,2.81888]
[1733246842190,0.04074622,3547.6,3547.3,2.819]
[1733246842508,0.55451963,3547.7,3547.1,2.81914]
[1733246842704,0.29437584,3547.7,3546.9,2.81934]
[1733246842882,0.04089425,3547.5,3546.9,2.81934]
[1733246843108,0.04085387,3547.4,3546.7,2.81948]
[1733246843312,0.04085387,3547.4,3546.8,3.0]
[1733246843525,0.26094759,3547.5,3546.8,3.0]
[1733246843684,0.0408308,3547.3,3546.7,2.81948]
[1733246844028,0.26096621,3547.6,3546.7,3.2193359]
[1733246844222,0.04086096,3547.2,3546.7,2.81948]
[1733246844541,0.26096621,3547.4,3546.7,2.81948]
[1733246844680,0.04077823,3547.1,3546.7,2.81948]
[1733246844999,0.26096621,3547.4,3546.4,3.418379]
[1733246845000,0.26096621,3547.3,3546.4,0.418379]
[1733246845196,0.04076445,3547.0,3546.6,2.81957]
[1733246845397,0.26096621,3547.2,3546.8,2.81937]
[1733246845600,0.04048857,3546.9,3546.8,2.81942]
[1733246845906,0.29438557,3547.1,3546.2,0.8027]
[1733246846299,0.04058357,3547.0,3546.8,2.81942]
[1733246847993,0.04058357,3547.0,3546.3,0.55]
[1733246848194,0.04058357,3547.0,3546.5,0.55]
[1733246848399,0.04058357,3547.0,3546.6,2.81959]
[1733246848925,0.04058357,3547.0,3546.7,2.8195]
[1733246849124,0.04058357,3547.0,3546.5,0.967238]
[1733246849125,0.04058357,3547.0,3546.5,3.786908]
[1733246849291,0.04058357,3547.0,3546.6,2.8196]
[1733246849486,0.04058357,3547.0,3546.5,0.967238]
[1733246849690,0.04058357,3547.0,3546.6,0.3787038]
[1733246849887,0.04058357,3547.0,3546.8,2.81942]
[1733246850397,0.04058357,3547.0,3546.6,0.3787038]
[1733246850597,0.04058357,3547.0,3546.7,2.81945]
[1733246851144,0.7567,3546.9,3546.2,0.8027]
[1733246851319,0.7567,3546.9,3546.6,2.81959]
[1733246851648,0.79712607,3546.9,3546.4,2.81974]
[1733246851802,0.79712607,3546.9,3546.3,0.55]
[1733246852149,0.04042607,3546.9,3546.8,2.81944]
[1733246852318,0.26111988,3547.0,3546.9,2.81936]
[1733246852520,0.7567,3547.3,3546.3,0.967262]
[1733246852521,0.7567,3547.3,3547.0,2.81928]
[1733246852715,5.42421732,3548.1,3546.3,3.967262]
[1733246852716,0.7567,3547.7,3547.1,2.8192]
[1733246853038,0.29434119,3547.5,3546.9,0.7671]
[1733246853224,0.26109399,3547.4,3547.3,2.81903]
[1733246853601,0.29434119,3547.5,3547.0,0.35865]
[1733246854003,0.26106079,3547.4,3547.0,0.35865]
[1733246854215,0.26109331,3547.4,3546.9,0.7671]
[1733246854411,0.29434119,3547.5,3547.1,2.8192]
[1733246855519,0.55538067,3547.5,3547.1,2.81917]
[1733246855719,0.29434119,3547.5,3547.1,2.81917]
[1733246856354,0.04055746,3547.4,3547.2,2.81906]
[1733246857044,0.04055746,3547.4,3547.3,2.81904]
[1733246857260,0.04055746,3547.4,3547.3,2.84722786]
[1733246857556,0.29434119,3547.5,3547.4,2.81896]
[1733246857739,0.29434119,3547.5,3547.4,3.57226]
[1733246858245,0.29434119,3547.5,3547.4,4.12226]
[1733246858455,0.26104343,3548.1,3548.0,2.81846]
[1733246858762,0.26104343,3548.3,3547.7,2.81869]
[1733246858923,0.29399906,3548.4,3548.0,2.81842]
[1733246859118,0.26108194,3548.3,3548.0,2.81842]
[1733246859463,0.29399906,3548.4,3548.2,0.7533]
[1733246859628,0.8113,3549.1,3548.3,0.55]
[1733246859629,0.26101969,3549.0,3548.3,0.55]
[1733246859966,0.8113,3549.5,3548.9,2.81777]
[1733246860151,0.26104286,3549.4,3549.1,2.81756]
[1733246860322,0.29425862,3549.2,3549.1,2.81761]
[1733246860520,0.29425862,3549.2,3549.1,3.61591]
[1733246861020,0.29425862,3549.2,3549.1,3.64408136]
[1733246861375,0.29425862,3549.2,3549.1,10.67845819]
[1733246861831,0.29425862,3549.2,3549.1,8.07268087]
[1733246862464,0.7516,3550.4,3549.5,2.81729]
[1733246862767,0.29416095,3549.9,3549.3,2.81744]
[1733246862919,2.83744423,3550.3,3549.2,3.0]
[1733246863117,0.66590727,3550.2,3549.2,3.0]
[1733246863322,0.29416674,3549.9,3549.1,1.70507087]
[1733246863642,0.29416674,3549.9,3549.2,2.81753]
[1733246863844,0.7818,3549.7,3548.7,0.7622]
[1733246864234,0.03833774,3549.6,3549.1,2.81758]
[1733246864573,0.7818,3549.7,3549.1,2.81758]
[1733246865056,0.03833774,3549.6,3548.7,0.7622]
[1733246865265,0.03833774,3549.6,3548.9,2.81776]
[1733246865458,0.03833774,3549.6,3548.7,3.58011]
[1733246865672,0.7818,3549.5,3548.4,1.15310773]
[1733246865893,2.81756,3549.2,3548.1,0.7622]
[1733246866190,2.81756,3549.2,3547.4,0.7299916]
[1733246866191,0.7818,3548.9,3547.8,0.7622]
[1733246866377,2.81785,3548.8,3547.4,2.81894]
[1733246866548,2.81803,3548.6,3547.1,3.58136]
[1733246866897,0.03792754,3548.7,3547.6,2.8188]
[1733246867072,0.03753633,3548.5,3547.6,2.8188]
[1733246867251,2.85555404,3548.6,3547.6,3.10068]
[1733246867452,3.65677055,3548.4,3547.3,2.81904]
[1733246867761,2.87646371,3548.3,3547.1,3.58139]
[1733246868091,0.8011,3547.8,3546.7,0.7706]
[1733246868468,0.03753194,3547.7,3546.7,3.59009]
[1733246868671,0.03753194,3547.7,3546.8,2.81943]
[1733246868855,0.03753194,3547.7,3546.9,0.359003]
[1733246869056,0.03753194,3547.7,3547.0,2.81928]
[1733246869347,0.03753194,3547.7,3547.1,3.0]
[1733246870000,0.8011,3547.8,3546.7,0.7706]
[1733246870164,0.8011,3547.8,3547.1,2.81919]
[1733246870372,0.03701028,3547.7,3547.1,2.81919]
[1733246870571,0.03701028,3547.7,3547.2,0.281919]
[1733246870775,0.8011,3547.8,3547.2,0.281919]
[1733246870979,0.03710105,3547.7,3547.2,0.281919]
[1733246871387,0.03710105,3547.7,3547.2,3.101019]
[1733246871564,0.8011,3547.8,3547.2,3.101019]
[1733246871770,0.03710861,3547.7,3547.2,3.101019]
[1733246871987,0.03710861,3547.7,3547.2,0.281919]
[1733246872160,0.03710861,3547.7,3546.4,3.7858]
[1733246872161,0.02073423,3547.7,3546.4,3.7858]
[1733246872362,3.61974,3547.8,3546.4,3.7858]
[1733246872588,0.03708991,3547.6,3546.4,3.7858]
[1733246872788,3.61974,3547.8,3546.4,3.7858]
[1733246872789,0.03707571,3547.5,3546.4,3.7858]
[1733246873104,0.03707571,3547.5,3545.8,3.3999554]
[1733246873105,2.81903,3547.4,3546.2,2.81991]
[1733246873283,2.81909,3547.3,3546.3,0.281991]
[1733246873661,0.03698031,3547.2,3546.3,0.281991]
[1733246873861,0.03698031,3547.2,3546.3,3.101751]
[1733246874357,0.03696608,3547.1,3546.3,3.101751]
[1733246874603,2.81897,3547.4,3546.3,3.101751]
[1733246874905,0.03698475,3547.3,3546.4,2.81974]
[1733246875053,0.03698475,3547.3,3546.5,2.84779372]
[1733246875259,0.03698475,3547.3,3546.6,2.81957]
[1733246875573,0.7535,3547.5,3546.6,2.81957]
[1733246875574,0.03651781,3547.2,3546.6,2.81957]
[1733246875771,0.7535,3547.5,3546.6,2.81957]
[1733246875957,0.03667888,3547.4,3546.6,3.1297261]
[1733246876157,0.03667888,3547.4,3546.6,0.3101561]
[1733246876804,0.03667888,3547.4,3546.3,0.281991]
[1733246876972,0.03667888,3547.4,3546.8,2.81944]
[1733246877179,0.03667888,3547.4,3547.3,2.81904]
[1733246877504,0.756,3547.9,3547.6,2.81876]
[1733246877669,1.06682874,3548.6,3547.6,2.81876]
[1733246877870,1.06682874,3548.6,3547.3,0.7631]
[1733246877871,0.71832007,3548.5,3547.8,2.81863]
[1733246878074,0.03436492,3548.5,3547.9,0.02818314]
[1733246878302,0.03436492,3548.5,3547.9,2.81856]
[1733246879001,0.03436492,3548.5,3548.0,2.81844]
[1733246879504,0.03436492,3548.5,3547.6,3.0]
[1733246879801,0.29393686,3548.4,3547.9,2.81856]
[1733246880008,0.03482655,3548.3,3547.9,3.400416]
[1733246880377,0.03482655,3548.3,3547.9,0.581856]
[1733246880678,0.03482655,3548.3,3548.1,2.81839]
[1733246880923,0.03482655,3548.3,3548.2,2.81833]
[1733246881214,0.29393686,3548.4,3547.5,0.02818189]
[1733246881215,0.29393686,3548.4,3548.3,2.81825]
[1733246881422,0.32885,3548.4,3548.3,3.75617301]
[1733246881570,0.29393686,3548.4,3548.3,3.727995]
[1733246881991,0.29393686,3548.4,3548.3,3.177995]
[1733246883216,0.29393686,3548.4,3548.3,0.359745]
[1733246884013,0.29393686,3548.4,3548.3,2.81825]
[1733246884215,0.29393686,3548.4,3547.7,6.60368]
[1733246884216,0.29393686,3548.4,3548.1,2.81839]
[1733246884386,0.29393686,3548.4,3547.7,6.60366]
[1733246884387,0.29393686,3548.4,3548.2,2.8183]
[1733246884592,0.29393686,3548.4,3548.3,2.81825]
[1733246885490,0.29393686,3548.4,3548.3,3.36825]
[1733246885680,0.7551,3549.6,3548.4,3.36817]
[1733246885876,0.7551,3549.6,3549.3,2.81739]
[1733246886427,0.29393596,3549.5,3549.4,2.81737]
[1733246886577,0.29393596,3549.5,3548.7,0.55]
[1733246886924,0.29393596,3549.5,3549.4,2.81737]
[1733246888195,0.29393596,3549.5,3549.4,3.930863]
[1733246888514,0.75,3550.6,3549.4,1.113493]
[1733246888725,0.29386701,3550.1,3550.0,2.81682]
[1733246889014,0.75,3550.6,3549.8,2.81699]
[1733246889177,0.03679757,3550.5,3549.9,2.81697]
[1733246889372,0.29387389,3550.1,3549.9,2.81697]
[1733246890009,0.29387389,3550.1,3549.9,3.098667]
[1733246890224,0.29387389,3550.1,3549.4,0.563493]
[1733246890420,0.29387389,3550.1,3549.7,0.7799]
[1733246890714,0.29387389,3550.1,3550.0,2.8169]
[1733246891078,0.29387389,3550.1,3550.0,3.39506481]
[1733246891427,0.29387389,3550.1,3550.0,3.3669]
[1733246891977,0.75,3551.4,3550.0,0.55]
[1733246892223,0.75,3551.4,3550.0,0.964702]
[1733246892387,0.29386589,3550.8,3550.4,2.81657]
[1733246892734,0.03720549,3551.3,3550.2,2.81674]
[1733246893015,0.03620762,3550.7,3550.6,3.36642]
[1733246893216,0.29385394,3551.1,3551.0,2.8161]
[1733246893815,0.33050725,3551.1,3551.0,3.09771]
[1733246894016,0.29385394,3551.1,3551.0,3.09771]
[1733246896017,0.7676,3552.6,3551.5,2.81569]
[1733246896328,0.29361017,3551.9,3551.6,2.81561]
[1733246896487,0.7676,3552.6,3551.6,2.81561]
[1733246896688,0.6880862,3552.5,3551.4,2.81577]
[1733246896886,0.29379276,3551.9,3551.5,2.81568]
[1733246897086,0.6880862,3552.5,3551.5,2.81568]
[1733246897291,0.94705082,3552.5,3551.5,2.81568]
[1733246897487,3.76201082,3552.5,3551.3,2.81585]
[1733246897739,3.29843196,3551.9,3550.5,3.57405]
[1733246897935,0.792,3552.0,3551.0,2.8161]
[1733246898223,0.792,3552.0,3550.6,0.55]
[1733246898636,0.792,3552.0,3550.9,2.81611]
[1733246898795,0.2937904,3551.9,3550.8,2.81626]
[1733246898999,0.2937904,3551.9,3551.8,2.81547]
[1733246899315,0.7985,3552.7,3551.8,0.55]
[1733246899493,0.7985,3552.7,3551.9,2.81533]
[1733246899698,0.29353567,3552.4,3552.3,2.81507]
[1733246900838,0.32620522,3552.4,3552.3,2.81507]
[1733246900997,0.29353567,3552.4,3552.3,4.007113]
[1733246901343,0.29353567,3552.4,3552.3,4.03525691]
[1733246901496,0.29353567,3552.4,3552.3,4.03525542]
[1733246901892,0.7506,3553.4,3552.4,0.55]
[1733246902328,0.29337817,3553.2,3552.4,0.55]
[1733246902691,0.29337817,3553.2,3552.5,0.4007073]
[1733246902897,0.29337817,3553.2,3552.6,2.81482]
[1733246903111,0.29337817,3553.2,3551.8,3.0]
[1733246903112,0.29337817,3553.2,3551.8,3.7976]
[1733246903292,0.8032,3553.0,3551.5,0.7976]
[1733246903523,0.03274341,3553.1,3551.8,3.7976]
[1733246903756,0.0327404,3552.9,3552.1,3.0]
[1733246904065,0.03285566,3553.0,3552.6,2.81477]